fUSD/lending_fUSD_20250202
["ID","MTS","AMOUNT","RATE_DAILY","PERIOD"]
[351333679,1738516290474,-500.0,0.00011643,2]
[351333680,1738516290484,-500.0,0.00011643,2]
[351333681,1738516290701,-431.3290073,0.00011662,2]
[351333682,1738516290711,-1118.9979096,0.0001176,2]
[351333683,1738516290721,-500.0,0.00011779,2]
[351333684,1738516290732,-500.0,0.00011779,2]
[351333685,1738516290746,-500.0,0.00011779,2]
[351333686,1738516290756,-500.0,0.00011779,2]
[351333687,1738516290766,-500.0,0.00011779,2]
[351333688,1738516290776,-482.74384607,0.00011779,2]
[351333689,1738516290786,-500.0,0.00011779,2]
[351333690,1738516290796,-500.0,0.00011779,2]
[351333691,1738516290805,-646.84243801,0.00011779,2]
[351333692,1738516290814,-500.0,0.00011779,2]
[351333693,1738516290824,-500.0,0.00011779,2]
[351333694,1738516290834,-331.02446778,0.00011779,2]
[351333695,1738516290843,-500.0,0.00011779,2]
[351333696,1738516290853,-655.84,0.00011779,2]
[351333697,1738516290863,-227.77822995,0.00011779,2]
[351333698,1738516290872,-474.20460693,0.00011779,2]
[351333699,1738516290881,-544.61,0.00011779,2]
[351333700,1738516290891,-500.0,0.00011779,2]
[351333701,1738516290900,-684.7,0.00011779,2]
[351333702,1738516290910,-500.0,0.00011779,2]
[351333703,1738516290920,-500.0,0.00011779,2]
[351333704,1738516290930,-500.0,0.00011779,2]
[351333705,1738516290939,-1092.39,0.00011779,2]
[351333706,1738516290948,-500.0,0.00011779,2]
[351333707,1738516290958,-500.0,0.00011779,2]
[351333708,1738516290967,-654.63,0.00011779,2]
[351333709,1738516290977,-624.83,0.00011779,2]
[351333710,1738516290988,-560.19,0.00011779,2]
[351333711,1738516291005,-500.0,0.00011779,2]
[351333712,1738516291018,-500.0,0.00011779,2]
[351333713,1738516291028,-500.0,0.00011779,2]
[351333714,1738516291037,-1210.49,0.00011779,2]
[351333715,1738516291047,-554.48,0.00011779,2]
[351333716,1738516291059,-500.0,0.00011779,2]
[351333717,1738516291068,-366.18166551,0.00011779,2]
[351333718,1738516291078,-500.0,0.00011779,2]
[351333719,1738516291089,-713.02,0.00011779,2]
[351333720,1738516291099,-500.0,0.00011779,2]
[351333721,1738516291108,-1374.75,0.00011779,2]
[351333722,1738516291117,-710.67,0.00011779,2]
[351333723,1738516291126,-500.0,0.00011779,2]
[351333724,1738516291136,-500.0,0.00011779,2]
[351333725,1738516291145,-500.0,0.00011779,2]
[351333726,1738516291154,-500.0,0.00011779,2]
[351333727,1738516291163,-1427.71,0.00011779,2]
[351333728,1738516291173,-500.0,0.00011779,2]
[351333729,1738516291184,-1604.84,0.00011779,2]
[351333730,1738516291193,-500.0,0.00011779,2]
[351333731,1738516291202,-1584.96,0.00011779,2]
[351333732,1738516291211,-500.0,0.00011779,2]
[351333733,1738516291220,-876.74,0.00011779,2]
[351333734,1738516291228,-569.44,0.00011779,2]
[351333735,1738516291237,-568.65,0.00011779,2]
[351333736,1738516291250,-716.72,0.00011779,2]
[351333737,1738516291260,-500.0,0.00011779,2]
[351333738,1738516291270,-233.11114552,0.00011779,2]
[351333739,1738516291279,-648.71,0.00011779,2]
[351333740,1738516291288,-500.0,0.00011779,2]
[351333741,1738516291298,-500.0,0.00011779,2]
[351333742,1738516291308,-2106.98,0.00011779,2]
[351333743,1738516291317,-986.39,0.00011779,2]
[351333744,1738516291327,-500.0,0.00011779,2]
[351333745,1738516291337,-1832.2,0.00011779,2]
[351333746,1738516291346,-500.0,0.00011779,2]
[351333747,1738516291355,-500.0,0.00011779,2]
[351333748,1738516291365,-500.0,0.00011779,2]
[351333749,1738516291374,-500.0,0.00011779,2]
[351333750,1738516291384,-1788.45,0.00011779,2]
[351333751,1738516291394,-593.9,0.00011779,2]
[351333752,1738516291403,-500.0,0.00011779,2]
[351333753,1738516291413,-500.0,0.00011779,2]
[351333754,1738516291423,-836.62,0.00011779,2]
[351333755,1738516291433,-500.0,0.00011779,2]
[351333756,1738516291444,-500.0,0.00011779,2]
[351333757,1738516291454,-500.0,0.00011779,2]
[351333758,1738516291463,-500.0,0.00011779,2]
[351333759,1738516291473,-1413.27,0.00011779,2]
[351333760,1738516291484,-500.0,0.00011779,2]
[351333761,1738516291498,-500.0,0.00011779,2]
[351333762,1738516291507,-1365.43,0.00011779,2]
[351333763,1738516291516,-500.0,0.00011779,2]
[351333764,1738516291526,-500.0,0.00011779,2]
[351333765,1738516291536,-730.63,0.00011779,2]
[351333766,1738516291546,-500.0,0.00011779,2]
[351333767,1738516291556,-500.0,0.00011779,2]
[351333768,1738516291566,-769.72,0.00011779,2]
[351333769,1738516291576,-162.33388068,0.00011779,2]
[351333770,1738516291585,-502.64,0.00011779,2]
[351333771,1738516291595,-662.11,0.00011779,2]
[351333772,1738516291604,-500.0,0.00011779,2]
[351333773,1738516291614,-500.0,0.00011779,2]
[351333774,1738516291623,-500.0,0.00011779,2]
[351333775,1738516291633,-500.0,0.00011779,2]
[351333776,1738516291642,-500.0,0.00011779,2]
[351333777,1738516291652,-500.0,0.00011779,2]
[351333778,1738516291661,-500.0,0.00011779,2]
[351333779,1738516291671,-500.0,0.00011779,2]
[351333780,1738516291680,-500.0,0.00011779,2]
[351333781,1738516291690,-500.0,0.00011779,2]
[351333782,1738516291700,-500.0,0.00011779,2]
[351333783,1738516291710,-500.0,0.00011779,2]
[351333784,1738516291720,-500.0,0.00011779,2]
[351333785,1738516291730,-470.98735355,0.00011779,2]
[351333786,1738516291739,-500.0,0.00011779,2]
[351333787,1738516291754,-500.0,0.00011779,2]
[351333788,1738516291762,-500.0,0.00011779,2]
[351333789,1738516291771,-500.0,0.00011779,2]
[351333790,1738516291780,-500.0,0.00011779,2]
[351333791,1738516291790,-500.0,0.00011779,2]
[351333792,1738516291800,-500.0,0.00011779,2]
[351333793,1738516291809,-500.0,0.00011779,2]
[351333794,1738516291819,-500.0,0.00011779,2]
[351333795,1738516291830,-500.0,0.00011779,2]
[351333796,1738516291839,-500.0,0.00011779,2]
[351333797,1738516291849,-511.33833032,0.00011779,2]
[351333798,1738516291858,-500.0,0.00011779,2]
[351333799,1738516291867,-500.0,0.00011779,2]
[351333800,1738516291876,-500.0,0.00011779,2]
[351333801,1738516291885,-500.0,0.00011779,2]
[351333802,1738516291895,-500.0,0.00011779,2]
[351333803,1738516291904,-527.12073045,0.00011779,2]
[351333804,1738516291914,-500.0,0.00011779,2]
[351333805,1738516291923,-500.0,0.00011779,2]
[351333806,1738516291933,-500.0,0.00011779,2]
[351333807,1738516291942,-553.02,0.00011779,2]
[351333808,1738516291951,-500.0,0.00011779,2]
[351333809,1738516291961,-542.96,0.00011779,2]
[351333810,1738516291971,-500.0,0.00011779,2]
[351333811,1738516291980,-859.6,0.00011779,2]
[351333812,1738516291993,-556.18804568,0.00011779,2]
[351333813,1738516292005,-500.0,0.00011779,2]
[351333814,1738516292015,-500.0,0.00011779,2]
[351333815,1738516292025,-500.0,0.00011779,2]
[351333816,1738516292034,-738.49,0.00011779,2]
[351333817,1738516292045,-500.0,0.00011779,2]
[351333818,1738516292055,-230.841971,0.00011779,2]
[351333819,1738516292065,-155.375858,0.0001178,2]
[351333820,1738516292075,-164.163259,0.0001178,2]
[351333821,1738516292085,-659.82,0.0001178,2]
[351333822,1738516292095,-1818.08,0.0001178,2]
[351333823,1738516292105,-1383.94,0.0001178,2]
[351333824,1738516292114,-1632.92,0.0001178,2]
[351333825,1738516292124,-500.0,0.0001178,2]
[351333826,1738516292133,-500.0,0.0001178,2]
[351333827,1738516292143,-500.0,0.0001178,2]
[351333828,1738516292152,-500.0,0.0001178,2]
[351333829,1738516292162,-1496.05,0.0001178,2]
[351333830,1738516292171,-500.0,0.0001178,2]
[351333831,1738516292180,-500.0,0.0001178,2]
[351333832,1738516292189,-919.37,0.0001178,2]
[351333833,1738516292199,-500.0,0.0001178,2]
[351333834,1738516292207,-500.0,0.0001178,2]
[351333835,1738516292215,-500.0,0.0001178,2]
[351333836,1738516292226,-500.0,0.0001178,2]
[351333837,1738516292236,-500.0,0.0001178,2]
[351333838,1738516292247,-1229.6,0.0001178,2]
[351333839,1738516292257,-500.0,0.0001178,2]
[351333840,1738516292267,-1004.74,0.0001178,2]
[351333841,1738516292276,-500.0,0.0001178,2]
[351333842,1738516292286,-500.0,0.0001178,2]
[351333843,1738516292296,-500.0,0.0001178,2]
[351333844,1738516292305,-500.0,0.0001178,2]
[351333845,1738516292313,-508.68,0.0001178,2]
[351333846,1738516292321,-500.0,0.0001178,2]
[351333847,1738516292331,-500.0,0.0001178,2]
[351333848,1738516292339,-500.0,0.0001178,2]
[351333849,1738516292349,-500.0,0.0001178,2]
[351333850,1738516292358,-1560.97,0.0001178,2]
[351333851,1738516292367,-500.0,0.0001178,2]
[351333852,1738516292378,-500.0,0.0001178,2]
[351333853,1738516292387,-500.0,0.0001178,2]
[351333854,1738516292396,-500.0,0.0001178,2]
[351333855,1738516292406,-935.8,0.0001178,2]
[351333856,1738516292415,-500.0,0.0001178,2]
[351333857,1738516292424,-500.0,0.0001178,2]
[351333858,1738516292433,-1597.78,0.0001178,2]
[351333859,1738516292442,-500.0,0.0001178,2]
[351333860,1738516292450,-500.0,0.0001178,2]
[351333861,1738516292458,-500.0,0.0001178,2]
[351333862,1738516292467,-686.32,0.0001178,2]
[351333863,1738516292477,-500.0,0.0001178,2]
[351333864,1738516292486,-500.0,0.0001178,2]
[351333865,1738516292497,-500.0,0.0001178,2]
[351333866,1738516292507,-500.0,0.0001178,2]
[351333867,1738516292516,-500.0,0.0001178,2]
[351333868,1738516292526,-747.2,0.0001178,2]
[351333869,1738516292535,-500.0,0.0001178,2]
[351333870,1738516292544,-931.63,0.0001178,2]
[351333871,1738516292554,-500.0,0.0001178,2]
[351333872,1738516292563,-544.19,0.0001178,2]
[351333873,1738516292572,-500.0,0.0001178,2]
[351333874,1738516292581,-500.0,0.0001178,2]
[351333875,1738516292590,-793.15,0.0001178,2]
[351333876,1738516292599,-500.0,0.0001178,2]
[351333877,1738516292610,-834.52,0.0001178,2]
[351333878,1738516292620,-500.0,0.0001178,2]
[351333879,1738516292630,-500.0,0.0001178,2]
[351333880,1738516292639,-1545.01,0.0001178,2]
[351333881,1738516292651,-500.0,0.0001178,2]
[351333882,1738516292662,-1108.92,0.0001178,2]
[351333883,1738516292671,-500.0,0.0001178,2]
[351333884,1738516292681,-500.0,0.0001178,2]
[351333885,1738516292691,-500.0,0.0001178,2]
[351333886,1738516292702,-500.0,0.0001178,2]
[351333887,1738516292711,-722.24,0.0001178,2]
[351333888,1738516292720,-571.77,0.0001178,2]
[351333889,1738516292729,-500.0,0.0001178,2]
[351333890,1738516292738,-1136.17,0.0001178,2]
[351333891,1738516292749,-500.0,0.0001178,2]
[351333892,1738516292759,-500.0,0.0001178,2]
[351333893,1738516292768,-500.0,0.0001178,2]
[351333894,1738516292777,-710.69,0.0001178,2]
[351333895,1738516292787,-857.14,0.0001178,2]
[351333896,1738516292796,-500.0,0.0001178,2]
[351333897,1738516292805,-500.0,0.0001178,2]
[351333898,1738516292814,-1750.64,0.0001178,2]
[351333899,1738516292823,-500.0,0.0001178,2]
[351333900,1738516292833,-500.0,0.0001178,2]
[351333901,1738516292841,-500.0,0.0001178,2]
[351333902,1738516292850,-500.0,0.0001178,2]
[351333903,1738516292859,-500.0,0.0001178,2]
[351333904,1738516292869,-500.0,0.0001178,2]
[351333905,1738516292878,-500.0,0.0001178,2]
[351333906,1738516292887,-842.59,0.0001178,2]
[351333907,1738516292897,-500.0,0.0001178,2]
[351333908,1738516292906,-775.0,0.0001178,2]
[351333909,1738516292915,-625.53,0.0001178,2]
[351333910,1738516292924,-500.0,0.0001178,2]
[351333911,1738516292934,-500.0,0.0001178,2]
[351333912,1738516292944,-500.0,0.0001178,2]
[351333913,1738516292954,-505.37548117,0.0001178,2]
[351333914,1738516292964,-500.0,0.0001178,2]
[351333915,1738516292974,-739.9,0.0001178,2]
[351333916,1738516292984,-500.0,0.0001178,2]
[351333917,1738516292996,-500.0,0.0001178,2]
[351333918,1738516293007,-500.0,0.0001178,2]
[351333919,1738516293020,-1495.04,0.0001178,2]
[351333920,1738516293030,-500.0,0.0001178,2]
[351333921,1738516293040,-500.0,0.0001178,2]
[351333922,1738516293049,-844.5,0.0001178,2]
[351333923,1738516293060,-500.0,0.0001178,2]
[351333924,1738516293070,-500.0,0.0001178,2]
[351333925,1738516293080,-500.0,0.0001178,2]
[351333926,1738516293090,-500.0,0.0001178,2]
[351333927,1738516293101,-500.0,0.0001178,2]
[351333928,1738516293111,-500.0,0.0001178,2]
[351333929,1738516293120,-183.02515902,0.0001178,2]
[351333930,1738516293130,-500.0,0.0001178,2]
[351333931,1738516293140,-203.57545459,0.0001178,2]
[351333932,1738516293149,-500.0,0.0001178,2]
[351333933,1738516293159,-684.18,0.0001178,2]
[351333934,1738516293170,-500.0,0.0001178,2]
[351333935,1738516293181,-500.0,0.0001178,2]
[351333936,1738516293191,-500.0,0.0001178,2]
[351333937,1738516293200,-631.66,0.0001178,2]
[351333938,1738516293210,-500.0,0.0001178,2]
[351333939,1738516293220,-500.0,0.0001178,2]
[351333940,1738516293229,-500.0,0.0001178,2]
[351333941,1738516293239,-551.59,0.0001178,2]
[351333942,1738516293252,-500.0,0.0001178,2]
[351333943,1738516293261,-500.0,0.0001178,2]
[351333944,1738516293271,-1084.43,0.0001178,2]
[351333945,1738516293282,-500.0,0.0001178,2]
[351333946,1738516293291,-500.0,0.0001178,2]
[351333947,1738516293301,-500.0,0.0001178,2]
[351333948,1738516293313,-500.0,0.0001178,2]
[351333949,1738516293323,-840.48,0.0001178,2]
[351333950,1738516293332,-500.0,0.0001178,2]
[351333951,1738516293342,-1710.72,0.0001178,2]
[351333952,1738516293351,-500.0,0.0001178,2]
[351333953,1738516293360,-500.0,0.0001178,2]
[351333954,1738516293370,-517.38,0.0001178,2]
[351333955,1738516293380,-500.0,0.0001178,2]
[351333956,1738516293390,-760.74,0.0001178,2]
[351333957,1738516293399,-849.46,0.0001178,2]
[351333958,1738516293410,-500.0,0.0001178,2]
[351333959,1738516293419,-500.0,0.0001178,2]
[351333960,1738516293428,-2007.31,0.0001178,2]
[351333961,1738516293438,-500.0,0.0001178,2]
[351333962,1738516293446,-892.19,0.0001178,2]
[351333963,1738516293455,-658.76,0.0001178,2]
[351333964,1738516293464,-500.0,0.0001178,2]
[351333965,1738516293474,-1757.52,0.0001178,2]
[351333966,1738516293484,-1228.76,0.0001178,2]
[351333967,1738516293496,-1094.69,0.0001178,2]
[351333968,1738516293505,-500.0,0.0001178,2]
[351333969,1738516293514,-500.0,0.0001178,2]
[351333970,1738516293525,-518.37,0.0001178,2]
[351333971,1738516293537,-500.0,0.0001178,2]
[351333972,1738516293546,-500.0,0.0001178,2]
[351333973,1738516293555,-500.0,0.0001178,2]
[351333974,1738516293565,-3130.51,0.0001178,2]
[351333975,1738516293574,-1929.48,0.0001178,2]
[351333976,1738516293582,-500.0,0.0001178,2]
[351333977,1738516293592,-179.89431443,0.0001178,2]
[351333978,1738516293601,-1280.69,0.0001178,2]
[351333979,1738516293610,-500.0,0.0001178,2]
[351333980,1738516293619,-500.0,0.0001178,2]
[351333981,1738516293628,-1077.4,0.0001178,2]
[351333982,1738516293637,-500.0,0.0001178,2]
[351333983,1738516293647,-500.0,0.0001178,2]
[351333984,1738516293656,-500.0,0.0001178,2]
[351333985,1738516293665,-500.0,0.0001178,2]
[351333986,1738516293674,-877.75,0.0001178,2]
[351333987,1738516293684,-2073.0,0.0001178,2]
[351333988,1738516293692,-500.0,0.0001178,2]
[351333989,1738516293701,-4819.38,0.0001178,2]
[351333990,1738516293710,-500.0,0.0001178,2]
[351333991,1738516293720,-1736.82,0.0001178,2]
[351333992,1738516293730,-500.0,0.0001178,2]
[351333993,1738516293740,-700.48,0.0001178,2]
[351333994,1738516293752,-500.0,0.0001178,2]
[351333995,1738516293761,-500.0,0.0001178,2]
[351333996,1738516293771,-1072.57,0.0001178,2]
[351333997,1738516293781,-3729.39,0.0001178,2]
[351333998,1738516293792,-500.0,0.0001178,2]
[351333999,1738516293802,-500.0,0.0001178,2]
[351334000,1738516293812,-687.01,0.0001178,2]
[351334001,1738516293823,-1365.66,0.0001178,2]
[351334002,1738516293833,-806.824741,0.0001178,2]
[351334003,1738516293843,-500.0,0.0001178,2]
[351334004,1738516293852,-2303.89,0.0001178,2]
[351334005,1738516293862,-500.0,0.0001178,2]
[351334006,1738516293873,-1452.31,0.0001178,2]
[351334007,1738516293883,-4008.48,0.0001178,2]
[351334008,1738516293893,-1355.16,0.0001178,2]
[351334009,1738516293904,-500.0,0.0001178,2]
[351334010,1738516293913,-500.0,0.0001178,2]
[351334011,1738516293924,-1416.22,0.0001178,2]
[351334012,1738516293934,-500.0,0.0001178,2]
[351334013,1738516293944,-431.478325,0.0001178,2]
[351334014,1738516293954,-547.65,0.0001178,2]
[351334015,1738516293964,-3631.07,0.0001178,2]
[351334016,1738516293974,-500.0,0.0001178,2]
[351334017,1738516293984,-2391.97,0.0001178,2]
[351334018,1738516293995,-878.43,0.0001178,2]
[351334019,1738516294179,-739.38,0.0001178,2]
[351334020,1738516294190,-658.78,0.0001178,2]
[351334021,1738516294201,-500.0,0.0001178,2]
[351334022,1738516294212,-1291.62,0.0001178,2]
[351334023,1738516294224,-500.0,0.0001178,2]
[351334024,1738516294235,-1768.17,0.0001178,2]
[351334025,1738516294248,-715.219347,0.0001178,2]
[351334026,1738516294258,-552.96989398,0.0001178,2]
[351334027,1738516294268,-500.0,0.0001178,2]
[351334028,1738516294279,-2540.16,0.0001178,2]
[351334029,1738516294291,-3801.08,0.0001178,2]
[351334030,1738516294302,-474.746717,0.0001178,2]
[351334031,1738516294312,-1197.82,0.0001178,2]
[351334032,1738516294323,-2156.68,0.0001178,2]
[351334033,1738516294334,-710.0,0.0001178,2]
[351334034,1738516294345,-500.0,0.0001178,2]
[351334035,1738516294355,-5321.51,0.0001178,2]
[351334036,1738516294365,-416.50826417,0.0001178,2]
[351334037,1738516294375,-2286.17,0.0001178,2]
[351334038,1738516294386,-3334.13,0.0001178,2]
[351334039,1738516294396,-583.29,0.0001178,2]
[351334040,1738516294406,-709.12,0.0001178,2]
[351334041,1738516294416,-788.53,0.0001178,2]
[351334042,1738516294426,-538.86,0.0001178,2]
[351334043,1738516294435,-3213.09,0.0001178,2]
[351334044,1738516294446,-500.0,0.0001178,2]
[351334045,1738516294464,-500.0,0.0001178,2]
[351334046,1738516294475,-500.0,0.0001178,2]
[351334047,1738516294485,-472.53777239,0.0001178,2]
[351334048,1738516294502,-500.0,0.0001178,2]
[351334049,1738516294513,-500.0,0.0001178,2]
[351334050,1738516294523,-500.0,0.0001178,2]
[351334051,1738516294532,-500.0,0.0001178,2]
[351334052,1738516294540,-472.743312,0.0001178,2]
[351334053,1738516294549,-3347.0,0.0001178,2]
[351334054,1738516294559,-500.0,0.0001178,2]
[351334055,1738516294569,-500.0,0.0001178,2]
[351334056,1738516294579,-1791.3,0.0001178,2]
[351334057,1738516294590,-1865.45,0.0001178,2]
[351334058,1738516294600,-436.90687597,0.0001178,2]
[351334059,1738516295148,-1122.44551438,0.0001178,2]
[351334060,1738516295774,-3154.41,0.00010958,2]
[351334061,1738516295788,-728.57,0.00010958,2]
[351334062,1738516295804,-3154.41,0.00011095,2]
[351334063,1738516295819,-728.57,0.00011095,2]
[351334064,1738516295835,-3154.41,0.00011232,2]
[351334065,1738516295850,-728.57,0.00011232,2]
[351334066,1738516295863,-3154.41,0.00011369,2]
[351334067,1738516295879,-1320.69851092,0.00011506,2]
[351334068,1738516295896,-537.640002,0.00011506,2]
[351334069,1738516295913,-1296.07148708,0.00011506,2]
[351334070,1738516295928,-500.0,0.00011643,2]
[351334071,1738516295942,-2556.72,0.00011643,2]
[351334072,1738516295956,-230.841971,0.00011779,2]
[351334073,1738516295971,-504.63607997,0.0001178,2]
[351334074,1738516295987,-2062.52152968,0.0001178,2]
[351334075,1738516296010,-500.0,0.0001178,2]
[351334076,1738516296028,-445.87847032,0.0001178,2]
[351334077,1738516296044,-812.610923,0.0001178,2]
[351334078,1738516296063,-31.76060668,0.0001178,2]
[351334079,1738516296076,-380.23939332,0.0001178,2]
[351334080,1738516296093,-219.44939668,0.0001178,2]
[351334081,1738516296108,-534.57,0.0001178,2]
[351334082,1738516296123,-4106.86,0.0001178,2]
[351334083,1738516296137,-2895.12,0.0001178,2]
[351334084,1738516296152,-1698.65,0.0001178,2]
[351334085,1738516296166,-500.0,0.0001178,2]
[351334086,1738516296180,-500.0,0.0001178,2]
[351334087,1738516296196,-500.0,0.0001178,2]
[351334088,1738516296210,-500.0,0.0001178,2]
[351334089,1738516296225,-448.017146,0.0001178,2]
[351334090,1738516296239,-855.64,0.0001178,2]
[351334091,1738516296257,-500.0,0.0001178,2]
[351334092,1738516296272,-7948.23,0.0001178,2]
[351334093,1738516296287,-2898.07384272,0.0001178,2]
[351334094,1738516296304,-801.36615728,0.0001178,2]
[351334095,1738516296319,-1134.77,0.0001178,2]
[351334096,1738516296333,-1388.83,0.0001178,2]
[351334097,1738516296347,-1267.53,0.0001178,2]
[351334098,1738516296361,-1281.92,0.0001178,2]
[351334099,1738516296376,-700.239809,0.0001178,2]
[351334100,1738516296389,-1852.27,0.0001178,2]
[351334101,1738516296404,-772.18,0.0001178,2]
[351334102,1738516296419,-500.0,0.0001178,2]
[351334103,1738516296433,-10331.27,0.0001178,2]
[351334104,1738516296447,-3740.63,0.0001178,2]
[351334105,1738516296461,-500.0,0.0001178,2]
[351334106,1738516296471,-12022.62969743,0.0001178,2]
[351334107,1738516296513,-728.57,0.00011369,2]
[351334108,1738516296523,-8.23059758,0.0001178,2]
[351334109,1738516296551,-10278.44970499,0.0001178,2]
[351334110,1738516296560,-2548.06,0.0001178,2]
[351334111,1738516296570,-2430.52,0.0001178,2]
[351334112,1738516296580,-757.34,0.0001178,2]
[351334113,1738516296590,-552.42289723,0.0001178,2]
[351334114,1738516296600,-5491.14,0.0001178,2]
[351334115,1738516296610,-3483.73,0.0001178,2]
[351334116,1738516296620,-500.0,0.0001178,2]
[351334117,1738516296630,-3375.4,0.0001178,2]
[351334118,1738516296640,-1965.31,0.0001178,2]
[351334119,1738516296650,-715.854792,0.0001178,2]
[351334120,1738516296660,-500.0,0.0001178,2]
[351334121,1738516296669,-573.22,0.0001178,2]
[351334122,1738516296680,-499.671825,0.0001178,2]
[351334123,1738516296689,-5575.16,0.0001178,2]
[351334124,1738516296699,-3861.12,0.0001178,2]
[351334125,1738516296709,-500.0,0.0001178,2]
[351334126,1738516296718,-6565.29,0.0001178,2]
[351334127,1738516296728,-2279.37,0.0001178,2]
[351334128,1738516296737,-1098.28,0.0001178,2]
[351334129,1738516296749,-500.0,0.0001178,2]
[351334130,1738516296759,-5388.59,0.0001178,2]
[351334131,1738516296770,-1360.61,0.0001178,2]
[351334132,1738516296780,-500.0,0.0001178,2]
[351334133,1738516296790,-500.0,0.0001178,2]
[351334134,1738516296800,-500.0,0.0001178,2]
[351334135,1738516296810,-658.158992,0.0001178,2]
[351334136,1738516296820,-2722.34,0.0001178,2]
[351334137,1738516296829,-864.3,0.0001178,2]
[351334138,1738516296839,-469.57071,0.0001178,2]
[351334139,1738516296849,-500.0,0.0001178,2]
[351334140,1738516296859,-3044.13,0.0001178,2]
[351334141,1738516296869,-513.14172486,0.0001178,2]
[351334142,1738516296879,-729.59,0.0001178,2]
[351334143,1738516296889,-500.0,0.0001178,2]
[351334144,1738516296899,-500.0,0.0001178,2]
[351334145,1738516296910,-3192.39,0.0001178,2]
[351334146,1738516296920,-1342.13,0.0001178,2]
[351334147,1738516296930,-3427.67,0.0001178,2]
[351334148,1738516296940,-2027.55,0.0001178,2]
[351334149,1738516296950,-500.0,0.0001178,2]
[351334150,1738516296960,-500.0,0.0001178,2]
[351334151,1738516296970,-4252.01,0.0001178,2]
[351334152,1738516296980,-2583.64,0.0001178,2]
[351334153,1738516296991,-10284.26,0.0001178,2]
[351334154,1738516297005,-2652.56,0.0001178,2]
[351334155,1738516297018,-633.56,0.0001178,2]
[351334156,1738516297028,-1427.7,0.0001178,2]
[351334157,1738516297037,-12127.67,0.0001178,2]
[351334158,1738516297046,-555.992645,0.0001178,2]
[351334159,1738516297057,-576.949377,0.0001178,2]
[351334160,1738516297066,-500.0,0.0001178,2]
[351334161,1738516297076,-500.0,0.0001178,2]
[351334162,1738516297087,-7300.52,0.0001178,2]
[351334163,1738516297096,-500.0,0.0001178,2]
[351334164,1738516297107,-4063.4,0.0001178,2]
[351334165,1738516297116,-6290.38,0.0001178,2]
[351334166,1738516297620,-1460.02,0.0001178,2]
[351334167,1738516297640,-824.29,0.0001178,2]
[351334168,1738516297664,-500.0,0.0001178,2]
[351334169,1738516297687,-500.0,0.0001178,2]
[351334170,1738516297697,-502.10140045,0.0001178,2]
[351334171,1738516297707,-500.0,0.0001178,2]
[351334172,1738516297717,-2235.5,0.0001178,2]
[351334173,1738516297728,-1908.31,0.0001178,2]
[351334174,1738516297738,-7227.41,0.0001178,2]
[351334175,1738516297751,-6243.33,0.0001178,2]
[351334176,1738516297761,-2827.59,0.0001178,2]
[351334177,1738516297771,-500.0,0.0001178,2]
[351334178,1738516297780,-911.77,0.0001178,2]